[Event "*** Titled Tuesday Blitz"]
[Site "Chess.com"]
[Date "2020.04.28"]
[Round "1"]
[White "TzoumpasAnastasis"]
[Black "GamayevOleg"]
[Result "1-0"]
[WhiteElo "2170"]
[BlackElo "2507"]
[TimeControl "180+1"]
[EndTime "10:06:03 PDT"]
[Termination "TzoumpasAnastasis won by resignation"]

1. c4 {[%clk 0:02:59.1]} 1... d6 {[%clk 0:03:00.9]} 2. Nc3 {[%clk 0:02:57.6]}
2... Nf6 {[%clk 0:03:01.3]} 3. g3 {[%clk 0:02:57.5]} 3... e5 {[%clk 0:03:01.8]}
4. Bg2 {[%clk 0:02:57.4]} 4... c6 {[%clk 0:03:01.9]} 5. Rb1 {[%clk 0:02:57.6]}
5... Be7 {[%clk 0:03:00.7]} 6. b4 {[%clk 0:02:57.6]} 6... O-O {[%clk 0:03:00.6]}
7. b5 {[%clk 0:02:57.8]} 7... Qc7 {[%clk 0:03:01]} 8. d3 {[%clk 0:02:54.4]} 8...
Nbd7 {[%clk 0:02:56.7]} 9. bxc6 {[%clk 0:02:53.2]} 9... bxc6 {[%clk 0:02:56.4]}
10. Nf3 {[%clk 0:02:52.5]} 10... Nc5 {[%clk 0:02:54.4]} 11. O-O {[%clk
0:02:50.4]} 11... h6 {[%clk 0:02:54.5]} 12. e3 {[%clk 0:02:47.6]} 12... Bf5
{[%clk 0:02:52.9]} 13. Ne1 {[%clk 0:02:47]} 13... Rab8 {[%clk 0:02:50.1]} 14.
Bb2 {[%clk 0:02:46.5]} 14... Bg4 {[%clk 0:02:49]} 15. f3 {[%clk 0:02:45.2]}
15... Bd7 {[%clk 0:02:49.3]} 16. d4 {[%clk 0:02:44.6]} 16... exd4 {[%clk
0:02:44.1]} 17. exd4 {[%clk 0:02:43.9]} 17... Ne6 {[%clk 0:02:42.7]} 18. Nc2
{[%clk 0:02:42]} 18... Qa5 {[%clk 0:02:36.9]} 19. Qd3 {[%clk 0:02:34.2]} 19...
Rfe8 {[%clk 0:02:34.9]} 20. Kh1 {[%clk 0:02:31]} 20... Bf8 {[%clk 0:02:25.7]}
21. Ne3 {[%clk 0:02:30.9]} 21... g6 {[%clk 0:02:19.6]} 22. Ng4 {[%clk
0:02:28.8]} 22... Nxg4 {[%clk 0:02:11.3]} 23. fxg4 {[%clk 0:02:28.9]} 23... Bg7
{[%clk 0:02:10.7]} 24. d5 {[%clk 0:02:24.9]} 24... Nc5 {[%clk 0:02:07.7]} 25.
Qf3 {[%clk 0:02:24.8]} 25... Rf8 {[%clk 0:01:59.6]} 26. dxc6 {[%clk 0:02:24.2]}
26... Bxc6 {[%clk 0:01:50.8]} 27. Qxc6 {[%clk 0:02:20.8]} 27... Bxc3 {[%clk
0:01:50.4]} 28. Bxc3 {[%clk 0:02:17.3]} 28... Qxc3 {[%clk 0:01:51.3]} 29. Rxb8
{[%clk 0:02:12.5]} 29... Rxb8 {[%clk 0:01:49.7]} 30. Qxd6 {[%clk 0:02:11.8]}
30... Rc8 {[%clk 0:01:44.3]} 31. Bd5 {[%clk 0:02:11]} 31... Kh8 {[%clk
0:01:29.6]} 32. Bxf7 {[%clk 0:02:07.8]} 32... Qd3 {[%clk 0:01:21.5]} 33. Qe5+
{[%clk 0:02:04.7]} 33... Kh7 {[%clk 0:01:17.8]} 34. Qf6 {[%clk 0:01:55.2]} 34...
Qe4+ {[%clk 0:01:08.9]} 35. Rf3 {[%clk 0:01:52.6]} 35... Nd3 {[%clk 0:01:02.7]}
36. Bd5 {[%clk 0:01:47.7]} 36... Qe1+ {[%clk 0:00:36.4]} 37. Rf1 {[%clk
0:01:45.7]} 37... Qe8 {[%clk 0:00:36.3]} 38. Qd4 {[%clk 0:01:42.1]} 38... Ne5
{[%clk 0:00:29.7]} 39. Re1 {[%clk 0:01:37.6]} 39... Nf3 {[%clk 0:00:29.8]} 40.
Qxa7+ {[%clk 0:01:30.9]} 40... Kh8 {[%clk 0:00:24.7]} 41. Rxe8+ {[%clk 0:01:30]}
41... Rxe8 {[%clk 0:00:25.6]} 42. Bxf3 {[%clk 0:01:29.5]} 1-0

[Event "*** Titled Tuesday Blitz"]
[Site "Chess.com"]
[Date "2020.04.28"]
[Round "1"]
[White "Majesth"]
[Black "algatar2020"]
[Result "1-0"]
[WhiteElo "2478"]
[BlackElo "1870"]
[TimeControl "180+1"]
[EndTime "10:06:05 PDT"]
[Termination "Majesth won by resignation"]

1. d4 {[%clk 0:02:56.5]} 1... d6 {[%clk 0:03:00.3]} 2. e4 {[%clk 0:02:55.6]}
2... Nf6 {[%clk 0:03:00.4]} 3. Nc3 {[%clk 0:02:55.5]} 3... g6 {[%clk 0:02:59.8]}
4. Bg5 {[%clk 0:02:55.1]} 4... Bg7 {[%clk 0:02:59.9]} 5. f4 {[%clk 0:02:55.7]}
5... Nbd7 {[%clk 0:02:58.9]} 6. e5 {[%clk 0:02:55.1]} 6... Ng8 {[%clk
0:02:57.6]} 7. Nf3 {[%clk 0:02:53.4]} 7... h6 {[%clk 0:02:57.4]} 8. Bh4 {[%clk
0:02:53]} 8... b6 {[%clk 0:02:48.6]} 9. Bd3 {[%clk 0:02:45.4]} 9... Bb7 {[%clk
0:02:47.4]} 10. e6 {[%clk 0:02:41.1]} 10... Ndf6 {[%clk 0:02:45]} 11. exf7+
{[%clk 0:02:37]} 11... Kf8 {[%clk 0:02:45.9]} 12. fxg8=Q+ {[%clk 0:02:36.4]}
12... Kxg8 {[%clk 0:02:29.3]} 13. Bxg6 {[%clk 0:02:35.7]} 13... c5 {[%clk
0:01:13.7]} 14. O-O {[%clk 0:02:27.2]} 14... Qc8 {[%clk 0:01:07.6]} 15. d5
{[%clk 0:02:23.1]} 15... Qg4 {[%clk 0:01:01.6]} 16. f5 {[%clk 0:02:19.7]} 16...
b5 {[%clk 0:00:51.8]} 17. h3 {[%clk 0:02:18.8]} 17... Qc4 {[%clk 0:00:49.2]} 18.
Qd3 {[%clk 0:01:58.5]} 18... Qxd3 {[%clk 0:00:47.1]} 19. cxd3 {[%clk 0:01:59.4]}
19... b4 {[%clk 0:00:47.1]} 20. Ne4 {[%clk 0:01:51.7]} 20... Nxd5 {[%clk
0:00:45]} 21. Rae1 {[%clk 0:01:42.7]} 21... Bxb2 {[%clk 0:00:39.3]} 22. Rf2
{[%clk 0:01:30.5]} 22... Bg7 {[%clk 0:00:27.7]} 23. f6 {[%clk 0:01:26.7]} 23...
Nxf6 {[%clk 0:00:24]} 24. Bxf6 {[%clk 0:01:25.2]} 24... Bxf6 {[%clk 0:00:19.7]}
25. Nxf6+ {[%clk 0:01:24.9]} 25... exf6 {[%clk 0:00:19.8]} 26. Re7 {[%clk
0:01:25.4]} 26... Bd5 {[%clk 0:00:18.7]} 27. Nh4 {[%clk 0:01:24.5]} 27... Rf8
{[%clk 0:00:16.9]} 28. Rxa7 {[%clk 0:01:21]} 28... Bf7 {[%clk 0:00:16]} 29. Rxf6
{[%clk 0:01:16.8]} 29... Kg7 {[%clk 0:00:16]} 1-0

[Event "*** Titled Tuesday Blitz"]
[Site "Chess.com"]
[Date "2020.04.28"]
[Round "1"]
[White "Fandorine"]
[Black "Kingsman132"]
[Result "1-0"]
[WhiteElo "2890"]
[BlackElo "2452"]
[TimeControl "180+1"]
[EndTime "10:06:09 PDT"]
[Termination "Fandorine won by resignation"]

1. e4 {[%clk 0:03:00.4]} 1... c5 {[%clk 0:02:56.7]} 2. Nf3 {[%clk 0:02:59.7]}
2... d6 {[%clk 0:02:54.1]} 3. d4 {[%clk 0:02:58.5]} 3... cxd4 {[%clk 0:02:55]}
4. Qxd4 {[%clk 0:02:58.4]} 4... Nc6 {[%clk 0:02:51.9]} 5. Bb5 {[%clk 0:02:57.6]}
5... Bd7 {[%clk 0:02:51]} 6. Qd3 {[%clk 0:02:57.9]} 6... Nf6 {[%clk 0:02:48.9]}
7. c4 {[%clk 0:02:56.6]} 7... e6 {[%clk 0:02:43.3]} 8. O-O {[%clk 0:02:55.7]}
8... a6 {[%clk 0:02:38.9]} 9. Bxc6 {[%clk 0:02:55.5]} 9... Bxc6 {[%clk
0:02:38.4]} 10. Nc3 {[%clk 0:02:55.7]} 10... h6 {[%clk 0:02:35.1]} 11. Nd4
{[%clk 0:02:48.6]} 11... Be7 {[%clk 0:02:32.2]} 12. Nxc6 {[%clk 0:02:45]} 12...
bxc6 {[%clk 0:02:33.1]} 13. b3 {[%clk 0:02:45.2]} 13... O-O {[%clk 0:02:31.9]}
14. Bb2 {[%clk 0:02:45.3]} 14... Qc7 {[%clk 0:02:04.4]} 15. Rac1 {[%clk
0:02:44]} 15... Rad8 {[%clk 0:02:00.9]} 16. Rfd1 {[%clk 0:02:43.6]} 16... Qb7
{[%clk 0:01:57.5]} 17. h3 {[%clk 0:02:26.3]} 17... d5 {[%clk 0:01:57.4]} 18.
exd5 {[%clk 0:02:16.4]} 18... cxd5 {[%clk 0:01:56.8]} 19. Qf3 {[%clk 0:02:12.1]}
19... Rd7 {[%clk 0:01:22.4]} 20. cxd5 {[%clk 0:02:07.3]} 20... exd5 {[%clk
0:01:22.1]} 21. Na4 {[%clk 0:02:05.2]} 21... Ne4 {[%clk 0:00:59.9]} 22. Qg4
{[%clk 0:02:03.5]} 22... Bf6 {[%clk 0:00:47.4]} 23. Nc5 {[%clk 0:01:52.4]} 23...
h5 {[%clk 0:00:26.8]} 24. Qxd7 {[%clk 0:01:49.8]} 24... Qxd7 {[%clk 0:00:26.3]}
25. Nxd7 {[%clk 0:01:49.9]} 25... Bxb2 {[%clk 0:00:26.8]} 26. Nxf8 {[%clk
0:01:50.1]} 26... Bxc1 {[%clk 0:00:26.4]} 27. Rxc1 {[%clk 0:01:50.3]} 27... Kxf8
{[%clk 0:00:26.7]} 28. Rc6 {[%clk 0:01:50.7]} 28... a5 {[%clk 0:00:22.8]} 29.
Kf1 {[%clk 0:01:48.9]} 29... Ke7 {[%clk 0:00:21.5]} 30. Ra6 {[%clk 0:01:47.3]}
30... Nd2+ {[%clk 0:00:18]} 31. Ke2 {[%clk 0:01:46.6]} 31... Ne4 {[%clk
0:00:17.3]} 32. Rxa5 {[%clk 0:01:45.2]} 32... Kd6 {[%clk 0:00:17.7]} 33. Ra7
{[%clk 0:01:44.6]} 33... Ke6 {[%clk 0:00:14.5]} 34. a4 {[%clk 0:01:42.8]} 34...
Nc5 {[%clk 0:00:13.6]} 35. b4 {[%clk 0:01:42.5]} 35... Nd7 {[%clk 0:00:11.4]}
36. a5 {[%clk 0:01:42.4]} 36... Kd6 {[%clk 0:00:11.7]} 37. Rxd7+ {[%clk
0:01:42]} 37... Kxd7 {[%clk 0:00:11.7]} 38. Kd3 {[%clk 0:01:42.5]} 38... Kc6
{[%clk 0:00:11.9]} 39. Kd4 {[%clk 0:01:43]} 39... Kb5 {[%clk 0:00:09]} 40. Kxd5
{[%clk 0:01:43.5]} 40... g5 {[%clk 0:00:07.4]} 41. g4 {[%clk 0:01:43.1]} 41...
hxg4 {[%clk 0:00:05]} 42. hxg4 {[%clk 0:01:44]} 42... f6 {[%clk 0:00:05]} 43. f3
{[%clk 0:01:43.9]} 43... Ka6 {[%clk 0:00:03.6]} 44. Ke6 {[%clk 0:01:43.3]} 1-0

[Event "*** Titled Tuesday Blitz"]
[Site "Chess.com"]
[Date "2020.04.28"]
[Round "1"]
[White "fastestmindalive"]
[Black "maziarbagheri"]
[Result "1-0"]
[WhiteElo "2817"]
[BlackElo "2429"]
[TimeControl "180+1"]
[EndTime "10:06:09 PDT"]
[Termination "fastestmindalive won by resignation"]

1. e4 {[%clk 0:02:59.7]} 1... e5 {[%clk 0:02:59.6]} 2. Nf3 {[%clk 0:02:56.9]}
2... Nc6 {[%clk 0:03:00.1]} 3. d4 {[%clk 0:02:55.9]} 3... Nf6 {[%clk 0:03:00.6]}
4. dxe5 {[%clk 0:02:53.3]} 4... Ng4 {[%clk 0:02:59.9]} 5. Bf4 {[%clk 0:02:52.4]}
5... Bc5 {[%clk 0:02:57.7]} 6. Bg3 {[%clk 0:02:51.6]} 6... Qe7 {[%clk
0:02:56.5]} 7. Nc3 {[%clk 0:02:47.8]} 7... Bb4 {[%clk 0:02:43.5]} 8. Qd5 {[%clk
0:02:42]} 8... O-O {[%clk 0:02:38.2]} 9. Bc4 {[%clk 0:02:38.9]} 9... Re8 {[%clk
0:02:36.5]} 10. O-O {[%clk 0:02:38]} 10... Bxc3 {[%clk 0:02:28.1]} 11. bxc3
{[%clk 0:02:38.9]} 11... b6 {[%clk 0:02:26.4]} 12. h3 {[%clk 0:02:37.2]} 12...
Nh6 {[%clk 0:02:22.1]} 13. Rad1 {[%clk 0:02:31.5]} 13... Rb8 {[%clk 0:02:12.5]}
14. Rfe1 {[%clk 0:02:27.1]} 14... Na5 {[%clk 0:02:08.1]} 15. Bb3 {[%clk
0:02:25.4]} 15... c6 {[%clk 0:02:03.8]} 16. Qd2 {[%clk 0:02:18.1]} 16... Ra8
{[%clk 0:01:57.7]} 17. Bf4 {[%clk 0:02:05.6]} 17... Nxb3 {[%clk 0:01:56.7]} 18.
cxb3 {[%clk 0:01:59.6]} 18... Qe6 {[%clk 0:01:57.2]} 19. Bxh6 {[%clk 0:01:55.8]}
19... Qxh6 {[%clk 0:01:56.2]} 20. Qxh6 {[%clk 0:01:55.3]} 20... gxh6 {[%clk
0:01:57.1]} 21. Rd6 {[%clk 0:01:54.9]} 21... Kg7 {[%clk 0:01:55.5]} 22. Red1
{[%clk 0:01:51.4]} 22... a5 {[%clk 0:01:54.7]} 23. Rf6 {[%clk 0:01:46.1]} 23...
a4 {[%clk 0:01:48]} 24. b4 {[%clk 0:01:45.9]} 24... a3 {[%clk 0:01:36.2]} 25.
Rdd6 {[%clk 0:01:44.6]} 25... Re6 {[%clk 0:01:32]} 26. Rfxe6 {[%clk 0:01:39.3]}
26... fxe6 {[%clk 0:01:26.8]} 27. Kf1 {[%clk 0:01:38]} 27... Kf7 {[%clk
0:01:26.3]} 28. Nd2 {[%clk 0:01:34.9]} 28... Ke7 {[%clk 0:01:26.4]} 29. Ke2
{[%clk 0:01:34.5]} 29... Ba6+ {[%clk 0:01:25.6]} 30. Ke3 {[%clk 0:01:34.4]}
30... h5 {[%clk 0:01:22.1]} 31. h4 {[%clk 0:01:34.2]} 31... Rg8 {[%clk
0:01:17.7]} 32. g3 {[%clk 0:01:33.9]} 32... h6 {[%clk 0:01:14.8]} 33. c4 {[%clk
0:01:33.7]} 33... Rb8 {[%clk 0:01:11.2]} 34. Rd3 {[%clk 0:01:33.2]} 34... c5
{[%clk 0:01:07.2]} 35. b5 {[%clk 0:01:32.8]} 35... Bb7 {[%clk 0:01:07.4]} 36.
Rxa3 {[%clk 0:01:33]} 36... Kd8 {[%clk 0:01:06.8]} 37. Ra7 {[%clk 0:01:16]}
37... Kc7 {[%clk 0:01:06.9]} 38. a4 {[%clk 0:01:13.8]} 38... Rg8 {[%clk
0:01:01.8]} 39. a5 {[%clk 0:01:13.7]} 39... bxa5 {[%clk 0:00:58.8]} 40. Rxa5
{[%clk 0:01:14.6]} 40... Kb6 {[%clk 0:00:56.8]} 41. Ra3 {[%clk 0:01:14.3]} 41...
Rg7 {[%clk 0:00:52]} 42. Rd3 {[%clk 0:01:12.5]} 42... Bc8 {[%clk 0:00:51.7]} 43.
Rd6+ {[%clk 0:01:11.5]} 43... Kc7 {[%clk 0:00:51.5]} 44. Nb3 {[%clk 0:01:11.4]}
1-0

[Event "*** Titled Tuesday Blitz"]
[Site "Chess.com"]
[Date "2020.04.28"]
[Round "1"]
[White "Ave_Mariia"]
[Black "MiroVlasenko"]
[Result "0-1"]
[WhiteElo "2289"]
[BlackElo "2611"]
[TimeControl "180+1"]
[EndTime "10:06:13 PDT"]
[Termination "MiroVlasenko won by checkmate"]

1. d4 {[%clk 0:03:00.8]} 1... f5 {[%clk 0:02:59.4]} 2. g3 {[%clk 0:02:58.8]}
2... Nf6 {[%clk 0:02:59.8]} 3. Bg2 {[%clk 0:02:58.5]} 3... g6 {[%clk 0:03:00.3]}
4. Nh3 {[%clk 0:02:57.4]} 4... d6 {[%clk 0:02:59.5]} 5. O-O {[%clk 0:02:56.8]}
5... Bg7 {[%clk 0:02:57.8]} 6. c4 {[%clk 0:02:56.8]} 6... O-O {[%clk 0:02:55.3]}
7. Nc3 {[%clk 0:02:56.5]} 7... e5 {[%clk 0:02:52.1]} 8. dxe5 {[%clk 0:02:36]}
8... dxe5 {[%clk 0:02:52]} 9. e4 {[%clk 0:02:05.2]} 9... c6 {[%clk 0:02:30.1]}
10. exf5 {[%clk 0:01:54.4]} 10... gxf5 {[%clk 0:02:27.5]} 11. Ng5 {[%clk
0:01:45.6]} 11... Qe7 {[%clk 0:02:24.3]} 12. Qb3 {[%clk 0:01:41.4]} 12... Na6
{[%clk 0:02:18.2]} 13. Be3 {[%clk 0:01:40]} 13... Ng4 {[%clk 0:02:12.9]} 14. c5+
{[%clk 0:01:36.3]} 14... Kh8 {[%clk 0:02:12.6]} 15. Nf3 {[%clk 0:01:01.6]} 15...
Nxe3 {[%clk 0:02:10]} 16. fxe3 {[%clk 0:01:02.5]} 16... Be6 {[%clk 0:02:06.6]}
17. Qc2 {[%clk 0:00:56.8]} 17... Qxc5 {[%clk 0:02:05.4]} 18. Rae1 {[%clk
0:00:53]} 18... Nb4 {[%clk 0:02:03.3]} 19. Qb1 {[%clk 0:00:52]} 19... Bc4 {[%clk
0:02:00.8]} 20. a3 {[%clk 0:00:46.5]} 20... Nd3 {[%clk 0:01:54.3]} 21. b4 {[%clk
0:00:43.4]} 21... Qe7 {[%clk 0:01:53.6]} 22. Rd1 {[%clk 0:00:41.4]} 22... Rad8
{[%clk 0:01:52.7]} 23. Rd2 {[%clk 0:00:38.5]} 23... e4 {[%clk 0:01:51.6]} 24.
Nd4 {[%clk 0:00:38.2]} 24... Rxd4 {[%clk 0:01:51]} 25. exd4 {[%clk 0:00:39.1]}
25... Bxd4+ {[%clk 0:01:50.7]} 26. Kh1 {[%clk 0:00:38.7]} 26... Bxc3 {[%clk
0:01:51.6]} 27. Rc2 {[%clk 0:00:38.6]} 27... Qe5 {[%clk 0:01:46.5]} 28. Rfc1
{[%clk 0:00:35.7]} 28... Nxc1 {[%clk 0:01:43.4]} 29. Qxc1 {[%clk 0:00:36.1]}
29... e3 {[%clk 0:01:39.2]} 30. Rxc3 {[%clk 0:00:35.3]} 30... e2 {[%clk
0:01:39.6]} 31. Re3 {[%clk 0:00:33.8]} 31... Qd4 {[%clk 0:01:33.5]} 32. Bf3
{[%clk 0:00:33.2]} 32... Bd5 {[%clk 0:01:20]} 33. Kg2 {[%clk 0:00:26.3]} 33...
Qd1 {[%clk 0:01:06.9]} 34. Qc3+ {[%clk 0:00:24.7]} 34... Kg8 {[%clk 0:01:06]}
35. Bxd5+ {[%clk 0:00:20.9]} 35... cxd5 {[%clk 0:01:02.2]} 36. Kf2 {[%clk
0:00:17.4]} 36... Qf1# {[%clk 0:01:01.3]} 0-1

[Event "*** Titled Tuesday Blitz"]
[Site "Chess.com"]
[Date "2020.04.28"]
[Round "1"]
[White "Karina_Ivanova"]
[Black "stoleriu"]
[Result "0-1"]
[WhiteElo "2205"]
[BlackElo "2550"]
[TimeControl "180+1"]
[EndTime "10:06:15 PDT"]
[Termination "stoleriu won by resignation"]

1. d4 {[%clk 0:02:55.9]} 1... e6 {[%clk 0:02:59.2]} 2. Nf3 {[%clk 0:02:54.4]}
2... Nf6 {[%clk 0:02:58.9]} 3. c4 {[%clk 0:02:53.6]} 3... Bb4+ {[%clk
0:02:56.8]} 4. Bd2 {[%clk 0:02:52.1]} 4... Qe7 {[%clk 0:02:56.2]} 5. Nc3 {[%clk
0:02:49.4]} 5... O-O {[%clk 0:02:54.8]} 6. Qc2 {[%clk 0:02:46.2]} 6... d6 {[%clk
0:02:52.5]} 7. g3 {[%clk 0:02:44.8]} 7... b6 {[%clk 0:02:48.3]} 8. Bg2 {[%clk
0:02:42.3]} 8... Bb7 {[%clk 0:02:47.8]} 9. O-O {[%clk 0:02:41.5]} 9... Nbd7
{[%clk 0:02:42.5]} 10. Rfe1 {[%clk 0:02:38.5]} 10... Bxc3 {[%clk 0:02:41.5]} 11.
Bxc3 {[%clk 0:02:37.5]} 11... h6 {[%clk 0:02:33]} 12. e4 {[%clk 0:02:29.3]}
12... e5 {[%clk 0:02:30.8]} 13. d5 {[%clk 0:02:27.9]} 13... a5 {[%clk
0:02:22.5]} 14. b3 {[%clk 0:02:18.1]} 14... Nc5 {[%clk 0:02:19.7]} 15. a3 {[%clk
0:02:12.9]} 15... Bc8 {[%clk 0:01:46.3]} 16. Nd2 {[%clk 0:02:02.3]} 16... Bd7
{[%clk 0:01:34]} 17. Ra2 {[%clk 0:01:52.2]} 17... Nh7 {[%clk 0:01:24.6]} 18.
Rea1 {[%clk 0:01:50.5]} 18... f5 {[%clk 0:01:19.2]} 19. b4 {[%clk 0:01:45.7]}
19... Nxe4 {[%clk 0:01:16.9]} 20. Nxe4 {[%clk 0:01:42.7]} 20... fxe4 {[%clk
0:01:17.8]} 21. Bxe4 {[%clk 0:01:42.4]} 21... Ng5 {[%clk 0:01:17.7]} 22. Rf1
{[%clk 0:01:25]} 22... axb4 {[%clk 0:01:11.5]} 23. Bxb4 {[%clk 0:01:19.5]} 23...
Bh3 {[%clk 0:00:47.5]} 24. Bg2 {[%clk 0:01:11.7]} 24... Bxg2 {[%clk 0:00:45.9]}
25. Kxg2 {[%clk 0:01:11.5]} 25... Qd7 {[%clk 0:00:46.4]} 26. f4 {[%clk 0:00:56]}
26... exf4 {[%clk 0:00:40.4]} 27. gxf4 {[%clk 0:00:55.3]} 27... Qg4+ {[%clk
0:00:39.6]} 28. Kh1 {[%clk 0:00:54.5]} 28... Rxf4 {[%clk 0:00:38.6]} 29. Rxf4
{[%clk 0:00:54]} 29... Qxf4 {[%clk 0:00:39.5]} 30. Qe2 {[%clk 0:00:45.8]} 30...
Rf8 {[%clk 0:00:36.1]} 31. Be1 {[%clk 0:00:42.3]} 31... Qf1+ {[%clk 0:00:33.7]}
0-1

[Event "*** Titled Tuesday Blitz"]
[Site "Chess.com"]
[Date "2020.04.28"]
[Round "1"]
[White "ShieldingOff"]
[Black "Gubajdullin"]
[Result "0-1"]
[WhiteElo "2007"]
[BlackElo "2484"]
[TimeControl "180+1"]
[EndTime "10:06:15 PDT"]
[Termination "Gubajdullin won by checkmate"]

1. d4 {[%clk 0:02:59.2]} 1... d5 {[%clk 0:02:53.9]} 2. c4 {[%clk 0:02:58.6]}
2... c6 {[%clk 0:02:52.3]} 3. Nf3 {[%clk 0:02:57.8]} 3... Nf6 {[%clk 0:02:52.1]}
4. e3 {[%clk 0:02:51.1]} 4... a6 {[%clk 0:02:51.9]} 5. Qc2 {[%clk 0:02:45]} 5...
Bg4 {[%clk 0:02:43.7]} 6. Ne5 {[%clk 0:02:42.5]} 6... Bh5 {[%clk 0:02:43.1]} 7.
Bd3 {[%clk 0:02:36.2]} 7... e6 {[%clk 0:02:43.2]} 8. Nd2 {[%clk 0:02:33.8]} 8...
Nbd7 {[%clk 0:02:43]} 9. Ndf3 {[%clk 0:02:33.1]} 9... Bb4+ {[%clk 0:02:39.5]}
10. Bd2 {[%clk 0:02:32.1]} 10... Bxd2+ {[%clk 0:02:39]} 11. Qxd2 {[%clk
0:02:29.6]} 11... Ne4 {[%clk 0:02:32.8]} 12. Qc2 {[%clk 0:02:12.2]} 12... Qa5+
{[%clk 0:02:29.4]} 13. Kf1 {[%clk 0:02:04.3]} 13... Nxe5 {[%clk 0:02:28]} 14.
Nxe5 {[%clk 0:01:56.4]} 14... Nd2+ {[%clk 0:02:12.7]} 15. Kg1 {[%clk 0:01:54.6]}
15... dxc4 {[%clk 0:02:05.7]} 16. Nxc4 {[%clk 0:01:49.4]} 16... Nxc4 {[%clk
0:02:04.7]} 17. Bxc4 {[%clk 0:01:45.6]} 17... Qg5 {[%clk 0:01:57.6]} 18. h4
{[%clk 0:01:39.9]} 18... Qe7 {[%clk 0:01:52.8]} 19. Rh3 {[%clk 0:01:34.6]} 19...
Bg6 {[%clk 0:01:50.4]} 20. Bd3 {[%clk 0:01:30.2]} 20... Bxd3 {[%clk 0:01:45.8]}
21. Qxd3 {[%clk 0:01:29.6]} 21... h5 {[%clk 0:01:45.8]} 22. Rc1 {[%clk
0:01:17.1]} 22... Rd8 {[%clk 0:01:44]} 23. Qe4 {[%clk 0:01:08.9]} 23... Qb4
{[%clk 0:01:39.7]} 24. b3 {[%clk 0:01:03.9]} 24... Qd2 {[%clk 0:01:38.9]} 25.
Qc2 {[%clk 0:00:56.7]} 25... Qxc2 {[%clk 0:01:29.7]} 26. Rxc2 {[%clk 0:00:56.5]}
26... Rd5 {[%clk 0:01:29.6]} 27. Rg3 {[%clk 0:00:52.3]} 27... g6 {[%clk
0:01:24.9]} 28. Kf1 {[%clk 0:00:44.8]} 28... Ke7 {[%clk 0:01:24]} 29. Ke2 {[%clk
0:00:44.6]} 29... Rc8 {[%clk 0:01:19.2]} 30. Rg5 {[%clk 0:00:36.7]} 30... Rxg5
{[%clk 0:01:15]} 31. hxg5 {[%clk 0:00:36.4]} 31... Kd6 {[%clk 0:01:09.5]} 32. b4
{[%clk 0:00:25.4]} 32... Ra8 {[%clk 0:01:04.9]} 33. Kd3 {[%clk 0:00:19.7]} 33...
a5 {[%clk 0:01:04.4]} 34. a3 {[%clk 0:00:16.8]} 34... axb4 {[%clk 0:01:04]} 35.
axb4 {[%clk 0:00:17]} 35... Ra3+ {[%clk 0:01:03]} 36. Kc4 {[%clk 0:00:16.6]}
36... b5# {[%clk 0:01:01.9]} 0-1

[Event "*** Titled Tuesday Blitz"]
[Site "Chess.com"]
[Date "2020.04.28"]
[Round "1"]
[White "Sadykov_Ramil"]
[Black "KingChess345"]
[Result "1-0"]
[WhiteElo "2520"]
[BlackElo "2141"]
[TimeControl "180+1"]
[EndTime "10:06:16 PDT"]
[Termination "Sadykov_Ramil won by resignation"]

1. e4 {[%clk 0:02:59.2]} 1... c5 {[%clk 0:02:58.7]} 2. Nf3 {[%clk 0:02:54.8]}
2... Nc6 {[%clk 0:02:58.6]} 3. Bb5 {[%clk 0:02:54.4]} 3... g6 {[%clk 0:02:56.1]}
4. Bxc6 {[%clk 0:02:54.5]} 4... dxc6 {[%clk 0:02:57]} 5. d3 {[%clk 0:02:54.5]}
5... Bg7 {[%clk 0:02:57.3]} 6. h3 {[%clk 0:02:54.7]} 6... e5 {[%clk 0:02:57.3]}
7. Be3 {[%clk 0:02:51.5]} 7... Qe7 {[%clk 0:02:57.5]} 8. Qd2 {[%clk 0:02:45.6]}
8... Nf6 {[%clk 0:02:56.5]} 9. Qc3 {[%clk 0:02:45.9]} 9... b6 {[%clk 0:02:24.5]}
10. b4 {[%clk 0:02:43.1]} 10... O-O {[%clk 0:02:02]} 11. bxc5 {[%clk 0:02:42.9]}
11... b5 {[%clk 0:01:57.3]} 12. a4 {[%clk 0:02:42.6]} 12... Nh5 {[%clk
0:01:51.2]} 13. axb5 {[%clk 0:02:25.8]} 13... f5 {[%clk 0:01:42.2]} 14. bxc6
{[%clk 0:02:19.2]} 14... fxe4 {[%clk 0:01:24.2]} 15. dxe4 {[%clk 0:02:07.9]}
15... Nf4 {[%clk 0:01:25.1]} 16. Bxf4 {[%clk 0:01:58.1]} 16... exf4 {[%clk
0:01:26]} 17. e5 {[%clk 0:01:58.4]} 17... Be6 {[%clk 0:01:05.9]} 18. Nbd2 {[%clk
0:01:54.6]} 18... Rfc8 {[%clk 0:00:53.8]} 19. O-O {[%clk 0:01:47.4]} 19... Rxc6
{[%clk 0:00:52.1]} 20. Ne4 {[%clk 0:01:46.7]} 20... Bd5 {[%clk 0:00:48.2]} 21.
Rfd1 {[%clk 0:01:38.8]} 21... Rd8 {[%clk 0:00:19]} 22. Ra5 {[%clk 0:00:48.6]}
22... Kh8 {[%clk 0:00:15.5]} 23. Nd6 {[%clk 0:00:44.4]} 23... Bxf3 {[%clk
0:00:12.6]} 24. Qxf3 {[%clk 0:00:45.3]} 24... Rd7 {[%clk 0:00:08.2]} 25. Qxc6
{[%clk 0:00:44.2]} 1-0